fUST/lending_fUST_20240306
["ID","MTS","AMOUNT","RATE_DAILY","PERIOD"]
[317155292,1709697045953,-500.0,0.00023287,2]
[317155293,1709697045963,-500.0,0.00023287,2]
[317155294,1709697045972,-500.0,0.00023287,2]
[317155295,1709697045982,-268.74640655,0.00023287,2]
[317155296,1709697045991,-500.0,0.00023287,2]
[317155297,1709697046001,-500.0,0.00023287,2]
[317155298,1709697046011,-500.0,0.00023287,2]
[317155299,1709697046020,-561.33360406,0.00023287,2]
[317155300,1709697046029,-504.63914315,0.00023287,2]
[317155301,1709697046039,-394.79524754,0.00023287,2]
[317155302,1709697046050,-500.52431377,0.00023287,2]
[317155303,1709697046059,-170.26767253,0.00023287,2]
[317155304,1709697046069,-191.9365285,0.00023287,2]
[317155305,1709697046077,-500.0,0.00023287,2]
[317155306,1709697046087,-500.0,0.00023287,2]
[317155307,1709697046097,-503.87326634,0.00023287,2]
[317155308,1709697046107,-500.0,0.00023287,2]
[317155309,1709697046116,-564.48433871,0.00023287,2]
[317155310,1709697046126,-500.0,0.00023287,2]
[317155311,1709697046135,-500.0,0.00023287,2]
[317155312,1709697046144,-708.39,0.00023287,2]
[317155313,1709697046153,-500.0,0.00023287,2]
[317155314,1709697046162,-708.39,0.00023287,2]
[317155315,1709697046171,-500.0,0.00023287,2]
[317155316,1709697046181,-500.0,0.00023287,2]
[317155317,1709697046190,-163.68340032,0.00023287,2]
[317155318,1709697046214,-544.70659968,0.00023287,2]
[317155319,1709697046224,-188.81619008,0.00023287,2]
[317155320,1709697046235,-519.57380992,0.00023287,2]
[317155321,1709697046244,-500.0,0.00023287,2]
[317155322,1709697046254,-68.70279008,0.00023287,2]
[317155323,1709697046677,-639.68720992,0.00023287,2]
[317155324,1709697046687,-500.0,0.00023287,2]
[317155325,1709697046696,-342.69167713,0.00023287,2]
[317155330,1709697251305,1576.37696414,0.000125,2]
[317155331,1709697251339,1133.26177801,0.000125,2]
[317155334,1709697591303,1446.63966865,0.000125,2]
[317155365,1709698025158,-573.25857085,0.0002117,2]
[317155366,1709698025179,-775.01274493,0.00021171,2]
[317155367,1709698025203,-294.12797144,0.00021187,2]
[317155368,1709698025226,-1995.67736562,0.00023,2]
[317155544,1709698240791,-573.25857085,0.00020899,2]
[317155546,1709698240801,-196.08531429,0.000209,2]
[317155548,1709698240810,-2736.30420589,0.00022996,2]
[317155550,1709698240821,-9160.95190897,0.00023,2]
[317155551,1709698240833,-2192.05164608,0.00023,2]
[317155553,1709698240844,-1557.81125677,0.00023,2]
[317155808,1709699040844,1095.0,0.000201,10]
[317156814,1709699228153,-176.34932727,0.00019999,2]
[317156815,1709699228173,-2674.4862275,0.0002,2]
[317156816,1709699347102,-294.64006495,0.00019995,2]
[317156817,1709699347122,-573.25857085,0.00019996,2]
[317156818,1709699347142,-1013.1657665,0.00019999,2]
[317156819,1709699355086,-2211.72492786,0.00019999,2]
[317156820,1709699356097,-7036.95562713,0.00019999,2]
[317156821,1709699356116,-5104.63950922,0.0002,2]
[317156822,1709699361341,-170.7751759,0.0002,2]
[317156823,1709699371092,-145.8560234,0.0002,2]
[317156824,1709699371112,-80.98895407,0.000209,2]
[317156826,1709699423638,156.81274118,0.000189,2]
[317156848,1709699434726,-166.1092245,0.00021426,2]
[317156849,1709699434736,-166.666666,0.00021678,2]
[317156850,1709699434745,-573.25857085,0.00021999,2]
[317156851,1709699434753,-161.0,0.00022,2]
[317156852,1709699434762,-10261.84632149,0.00022997,2]
[317156853,1709699434771,-2736.30420589,0.00022998,2]
[317156854,1709699434780,-6024.97957931,0.00023,2]
[317156855,1709699434789,-161.0,0.00023014,2]
[317156856,1709699434797,-170.7751759,0.00023054,2]
[317156857,1709699434806,-3873.39391601,0.00023066,3]
[317156858,1709699434815,-2884.50959269,0.00023066,3]
[317156859,1709699434824,-1000.0,0.00023066,7]
[317156860,1709699434832,-315.4894416,0.000231,2]
[317156861,1709699434841,-153.0,0.000231,2]
[317156862,1709699434851,-306.0,0.000231,2]
[317156863,1709699434860,-6043.88614246,0.00023112,2]
[317156864,1709699434869,-5000.0,0.00023113,2]
[317156865,1709699434879,-50000.0,0.00023113,2]
[317156866,1709699434888,-456.43381237,0.00023114,2]
[317156868,1709699434899,-5000.0,0.00023114,2]
[317156870,1709699434907,-742.69184791,0.00023114,2]
[317156872,1709699434917,-5000.0,0.00023114,2]
[317156874,1709699434926,-5000.0,0.00023114,2]
[317156876,1709699434935,-2896.49664521,0.00023114,2]
[317156878,1709699434944,-5000.0,0.00023114,2]
[317156880,1709699434953,-4708.89,0.00023124,2]
[317156882,1709699434962,-12499.99,0.00023134,2]
[317156884,1709699434971,-12499.99,0.00023148,2]
[317156886,1709699434980,-12499.99,0.00023149,2]
[317156888,1709699434989,-160.86,0.00023154,3]
[317156890,1709699434998,-482.58,0.00023154,3]
[317156892,1709699435007,-3500.6,0.00023154,2]
[317156894,1709699435016,-321.72,0.00023159,3]
[317156896,1709699435025,-12499.99,0.00023164,2]
[317156898,1709699435035,-9441.23,0.00023169,2]
[317156900,1709699435046,-193.5819387,0.00023187,2]
[317156902,1709699435056,-15001.64968762,0.00023187,2]
[317156904,1709699435066,-984.80399247,0.00023187,2]
[317156906,1709699435075,-984.80399247,0.00023187,2]
[317156908,1709699435084,-984.80399247,0.00023187,2]
[317156910,1709699435093,-984.80399247,0.00023187,2]
[317156912,1709699435103,-984.80399247,0.00023187,2]
[317156914,1709699435112,-984.80399247,0.00023187,2]
[317156916,1709699435122,-984.80399247,0.00023187,2]
[317156918,1709699435131,-984.80399247,0.00023187,2]
[317156920,1709699435141,-984.80399247,0.00023187,2]
[317156922,1709699435150,-984.80399247,0.00023187,2]
[317156924,1709699435159,-984.80399247,0.00023187,2]
[317156926,1709699435169,-984.80399247,0.00023187,2]
[317156928,1709699435178,-984.80399247,0.00023187,2]
[317156930,1709699435187,-984.80399247,0.00023187,2]
[317156932,1709699435197,-984.80399247,0.00023187,2]
[317156934,1709699435206,-984.80399247,0.00023187,2]
[317156936,1709699435216,-984.80399247,0.00023187,2]
[317156938,1709699435225,-984.80399247,0.00023187,2]
[317156940,1709699435235,-984.80399247,0.00023187,2]
[317156942,1709699435245,-984.8,0.00023187,2]
[317156944,1709699435254,-3939.21596986,0.00023187,2]
[317156946,1709699435264,-3939.21596986,0.00023187,2]
[317156947,1709699435273,-3939.21596986,0.00023187,2]
[317156948,1709699435283,-3939.21596986,0.00023187,2]
[317156949,1709699435292,-3939.21596986,0.00023187,2]
[317156950,1709699435301,-3939.21596986,0.00023187,2]
[317156951,1709699435310,-3939.21596986,0.00023187,2]
[317156952,1709699435320,-3939.21596986,0.00023187,2]
[317156953,1709699435329,-3939.21596986,0.00023187,2]
[317156954,1709699435339,-3939.21596986,0.00023187,2]
[317156955,1709699435350,-3939.21596986,0.00023187,2]
[317156956,1709699435359,-3939.21596986,0.00023187,2]
[317156957,1709699435369,-3939.21596986,0.00023187,2]
[317156958,1709699435378,-3939.21596986,0.00023187,2]
[317156959,1709699435388,-3939.21596986,0.00023187,2]
[317156960,1709699435396,-3939.21596986,0.00023187,2]
[317156961,1709699435405,-3939.21596986,0.00023187,2]
[317156962,1709699435415,-3939.21596986,0.00023187,2]
[317156963,1709699435424,-3939.21596986,0.00023187,2]
[317156964,1709699435435,-3939.21,0.00023187,2]
[317156965,1709699435447,-228.9928759,0.00023187,2]
[317156966,1709699435456,-228.9928759,0.00023187,2]
[317156967,1709699435466,-228.9928759,0.00023187,2]
[317156968,1709699435475,-228.9928759,0.00023187,2]
[317156969,1709699435484,-228.9928759,0.00023187,2]
[317156970,1709699435493,-228.9928759,0.00023187,2]
[317156971,1709699435502,-228.9928759,0.00023187,2]
[317156972,1709699435512,-228.9928759,0.00023187,2]
[317156973,1709699435522,-228.9928759,0.00023187,2]
[317156974,1709699435531,-228.9928759,0.00023187,2]
[317156975,1709699435541,-228.9928759,0.00023187,2]
[317156976,1709699435550,-228.9928759,0.00023187,2]
[317156977,1709699435560,-228.9928759,0.00023187,2]
[317156978,1709699435572,-228.9928759,0.00023187,2]
[317156979,1709699435582,-228.9928759,0.00023187,2]
[317156980,1709699435592,-228.9928759,0.00023187,2]
[317156981,1709699435603,-228.9928759,0.00023187,2]
[317156982,1709699435613,-228.9928759,0.00023187,2]
[317156983,1709699435623,-228.9928759,0.00023187,2]
[317156984,1709699435633,-228.99,0.00023187,2]
[317156985,1709699435642,-915.9715036,0.00023187,2]
[317156986,1709699435652,-915.9715036,0.00023187,2]
[317156987,1709699435662,-915.9715036,0.00023187,2]
[317156988,1709699435671,-915.9715036,0.00023187,2]
[317156989,1709699435680,-915.9715036,0.00023187,2]
[317156990,1709699435690,-915.9715036,0.00023187,2]
[317156991,1709699435699,-915.9715036,0.00023187,2]
[317156992,1709699435709,-915.9715036,0.00023187,2]
[317156993,1709699435719,-915.9715036,0.00023187,2]
[317156994,1709699435728,-915.9715036,0.00023187,2]
[317156995,1709699435738,-915.9715036,0.00023187,2]
[317156996,1709699435748,-915.9715036,0.00023187,2]
[317156997,1709699435759,-915.9715036,0.00023187,2]
[317156998,1709699435769,-915.9715036,0.00023187,2]
[317156999,1709699435778,-915.9715036,0.00023187,2]
[317157000,1709699435788,-915.9715036,0.00023187,2]
[317157001,1709699435797,-915.9715036,0.00023187,2]
[317157002,1709699435806,-915.9715036,0.00023187,2]
[317157003,1709699435816,-915.9715036,0.00023187,2]
[317157004,1709699435826,-915.97,0.00023187,2]
[317157005,1709699435835,-194.58128134,0.00023187,2]
[317157006,1709699435845,-194.58128134,0.00023187,2]
[317157007,1709699435855,-194.58,0.00023187,2]
[317157008,1709699435864,-153.19834409,0.00023187,2]
[317157009,1709699435875,-153.19834409,0.00023187,2]
[317157010,1709699435884,-153.19834409,0.00023187,2]
[317157011,1709699435896,-153.19834409,0.00023187,2]
[317157012,1709699435905,-153.19834409,0.00023187,2]
[317157013,1709699435915,-153.19834409,0.00023187,2]
[317157014,1709699435924,-153.19834409,0.00023187,2]
[317157015,1709699435934,-153.19834409,0.00023187,2]
[317157016,1709699435943,-153.19834409,0.00023187,2]
[317157017,1709699435952,-153.19,0.00023187,2]
[317157018,1709699435962,-306.39668819,0.00023187,2]
[317157019,1709699435972,-306.39668819,0.00023187,2]
[317157020,1709699435981,-306.39668819,0.00023187,2]
[317157021,1709699435991,-306.39668819,0.00023187,2]
[317157022,1709699436001,-306.39668819,0.00023187,2]
[317157023,1709699436010,-306.39668819,0.00023187,2]
[317157024,1709699436019,-306.39668819,0.00023187,2]
[317157025,1709699436029,-306.39668819,0.00023187,2]
[317157026,1709699436038,-306.39668819,0.00023187,2]
[317157027,1709699436047,-306.39668819,0.00023187,2]
[317157028,1709699436056,-306.39668819,0.00023187,2]
[317157029,1709699436065,-306.39668819,0.00023187,2]
[317157030,1709699436074,-306.39668819,0.00023187,2]
[317157031,1709699436162,-306.39668819,0.00023187,2]
[317157032,1709699436172,-306.0,0.000232,2]
[317157033,1709699436181,-153.0,0.000232,2]
[317157034,1709699436190,-153.0,0.000232,2]
[317157035,1709699436199,-154.0707018,0.000232,2]
[317157036,1709699436209,-153.683006,0.000232,2]
[317157037,1709699436218,-200.885322,0.000232,2]
[317157038,1709699436227,-193.58193865,0.00023266,2]
[317157039,1709699436237,-643.43,0.00023275,3]
[317157040,1709699436246,-323.21095752,0.00023285,2]
[317157041,1709699436255,-286.56262958,0.00023285,2]
[317157042,1709699436264,-155.64452519,0.00023285,2]
[317157043,1709699436273,-652.86502819,0.00023285,2]
[317157044,1709699436283,-264.14255877,0.00023285,2]
[317157045,1709699436292,-240.08561448,0.00023285,2]
[317157046,1709699436302,-421.01458744,0.00023285,2]
[317157047,1709699436311,-4851.2189258,0.00023285,2]
[317157048,1709699436321,-403.47015161,0.00023285,2]
[317157049,1709699436330,-358.44831287,0.00023285,2]
[317157050,1709699436340,-244.21595388,0.00023285,2]
[317157051,1709699436350,-3151.07349555,0.00023285,2]
[317157052,1709699436360,-262.57477922,0.00023285,7]
[317157053,1709699436370,-296.24829318,0.00023285,2]
[317157054,1709699436380,-446.7684782,0.00023285,2]
[317157055,1709699436389,-1259.76914948,0.00023286,2]
[317157056,1709699436399,-247.7333838,0.00023286,2]
[317157057,1709699436408,-557.6144784,0.00023286,2]
[317157058,1709699436417,-276.84141771,0.00023287,3]
[317157059,1709699436426,-224.58990631,0.00023287,2]
[317157060,1709699436436,-500.0,0.00023287,2]
[317157061,1709699436446,-500.0,0.00023287,2]
[317157062,1709699436455,-500.0,0.00023287,2]
[317157063,1709699436465,-500.0,0.00023287,2]
[317157064,1709699436475,-500.0,0.00023287,2]
[317157065,1709699436485,-500.0,0.00023287,2]
[317157066,1709699436494,-500.0,0.00023287,2]
[317157067,1709699436504,-500.0,0.00023287,2]
[317157068,1709699436513,-500.0,0.00023287,2]
[317157069,1709699436522,-500.0,0.00023287,2]
[317157070,1709699436532,-500.0,0.00023287,2]
[317157071,1709699436541,-500.0,0.00023287,2]
[317157072,1709699436549,-500.0,0.00023287,2]
[317157073,1709699436560,-500.0,0.00023287,2]
[317157074,1709699436569,-197.3036507,0.00023287,2]
[317157075,1709699436579,-500.0,0.00023287,2]
[317157076,1709699436588,-500.0,0.00023287,2]
[317157077,1709699436598,-498.95635333,0.00023287,2]
[317157078,1709699436607,-500.0,0.00023287,2]
[317157079,1709699436617,-500.0,0.00023287,2]
[317157080,1709699436626,-500.0,0.00023287,2]
[317157081,1709699436635,-500.0,0.00023287,2]
[317157082,1709699436644,-500.0,0.00023287,2]
[317157083,1709699436654,-500.0,0.00023287,2]
[317157084,1709699436664,-500.0,0.00023287,2]
[317157085,1709699436673,-500.0,0.00023287,2]
[317157086,1709699436682,-500.0,0.00023287,2]
[317157087,1709699436691,-500.0,0.00023287,2]
[317157088,1709699436701,-500.0,0.00023287,2]
[317157089,1709699436711,-500.0,0.00023287,2]
[317157090,1709699436720,-500.0,0.00023287,2]
[317157091,1709699436730,-500.0,0.00023287,2]
[317157092,1709699436739,-500.0,0.00023287,2]
[317157093,1709699436749,-507.940033,0.00023287,2]
[317157094,1709699436758,-500.0,0.00023287,2]
[317157095,1709699436767,-500.0,0.00023287,2]
[317157096,1709699436777,-500.0,0.00023287,2]
[317157097,1709699436786,-500.0,0.00023287,2]
[317157098,1709699436795,-500.0,0.00023287,2]
[317157099,1709699436804,-500.0,0.00023287,2]
[317157100,1709699436814,-500.0,0.00023287,2]
[317157101,1709699436823,-502.62584586,0.00023287,2]
[317157102,1709699436832,-501.39254974,0.00023287,2]
[317157103,1709699436841,-189.16961755,0.00023287,2]
[317157104,1709699436853,-300.63346849,0.00023287,2]
[317157105,1709699436864,-500.0,0.00023287,2]
[317157106,1709699436873,-500.0,0.00023287,2]
[317157107,1709699436883,-500.0,0.00023287,2]
[317157108,1709699436895,-500.0,0.00023287,2]
[317157109,1709699436904,-500.0,0.00023287,2]
[317157110,1709699436914,-500.0,0.00023287,2]
[317157111,1709699436923,-228.54241467,0.00023287,2]
[317157112,1709699436932,-500.33507723,0.00023287,2]
[317157113,1709699436942,-500.0,0.00023287,2]
[317157114,1709699436951,-500.0,0.00023287,2]
[317157115,1709699436961,-500.0,0.00023287,2]
[317157116,1709699436972,-500.0,0.00023287,2]
[317157117,1709699436981,-502.75272895,0.00023287,2]
[317157118,1709699436991,-500.0,0.00023287,2]
[317157119,1709699437000,-500.0,0.00023287,2]
[317157120,1709699437010,-500.0,0.00023287,2]
[317157121,1709699437020,-500.0,0.00023287,2]
[317157122,1709699437029,-571.44717753,0.00023287,2]
[317157123,1709699437039,-500.98852862,0.00023287,2]
[317157124,1709699437048,-500.0,0.00023287,2]
[317157125,1709699437058,-187.75588356,0.00023287,2]
[317157126,1709699437068,-500.0,0.00023287,2]
[317157127,1709699437077,-500.0,0.00023287,2]
[317157128,1709699437087,-500.0,0.00023287,2]
[317157129,1709699437099,-500.0,0.00023287,2]
[317157130,1709699437108,-500.0,0.00023287,2]
[317157131,1709699437117,-500.0,0.00023287,2]
[317157132,1709699437126,-500.0,0.00023287,2]
[317157133,1709699437135,-237.7639963,0.00023287,2]
[317157134,1709699437144,-500.0,0.00023287,2]
[317157135,1709699437153,-500.0,0.00023287,2]
[317157136,1709699437162,-500.0,0.00023287,2]
[317157137,1709699437171,-502.31298053,0.00023287,2]
[317157138,1709699437181,-500.0,0.00023287,2]
[317157140,1709699437190,-500.0,0.00023287,2]
[317157141,1709699437200,-500.0,0.00023287,2]
[317157142,1709699437209,-330.02568915,0.00023287,2]
[317157143,1709699437219,-503.66377028,0.00023287,2]
[317157144,1709699437228,-500.0,0.00023287,2]
[317157145,1709699437237,-500.0,0.00023287,2]
[317157146,1709699437247,-500.0,0.00023287,2]
[317157148,1709699437256,-500.0,0.00023287,2]
[317157150,1709699437266,-626.39317846,0.00023287,2]
[317157151,1709699437275,-506.84145008,0.00023287,2]
[317157152,1709699437284,-500.0,0.00023287,2]
[317157154,1709699437293,-500.0,0.00023287,2]
[317157156,1709699437301,-503.01322112,0.00023287,2]
[317157157,1709699437310,-500.0,0.00023287,2]
[317157158,1709699437319,-500.0,0.00023287,2]
[317157159,1709699437328,-500.0,0.00023287,2]
[317157160,1709699437337,-501.1882399,0.00023287,2]
[317157161,1709699437349,-500.0,0.00023287,2]
[317157162,1709699437358,-500.0,0.00023287,2]
[317157163,1709699437367,-500.0,0.00023287,2]
[317157164,1709699437376,-500.0,0.00023287,2]
[317157165,1709699437386,-500.0,0.00023287,2]
[317157166,1709699437395,-500.0,0.00023287,2]
[317157167,1709699437404,-500.0,0.00023287,2]
[317157168,1709699437413,-500.0,0.00023287,2]
[317157169,1709699437422,-423.63630356,0.00023287,2]
[317157170,1709699437431,-500.0,0.00023287,2]
[317157171,1709699437440,-500.0,0.00023287,2]
[317157172,1709699437449,-259.37035301,0.00023287,2]
[317157173,1709699437458,-428.70566342,0.00023287,2]
[317157174,1709699437467,-500.0,0.00023287,2]
[317157175,1709699437477,-500.0,0.00023287,2]
[317157176,1709699437486,-500.0,0.00023287,2]
[317157177,1709699437496,-500.0,0.00023287,2]
[317157178,1709699437505,-500.0,0.00023287,2]
[317157179,1709699437514,-500.0,0.00023287,2]
[317157180,1709699437526,-500.0,0.00023287,2]
[317157181,1709699437535,-500.0,0.00023287,2]
[317157182,1709699437544,-500.0,0.00023287,2]
[317157183,1709699437554,-500.0,0.00023287,2]
[317157184,1709699437566,-500.0,0.00023287,2]
[317157185,1709699437575,-500.0,0.00023287,2]
[317157186,1709699437584,-500.0,0.00023287,2]
[317157188,1709699437593,-500.0,0.00023287,2]
[317157189,1709699437604,-500.0,0.00023287,2]
[317157190,1709699437613,-500.0,0.00023287,2]
[317157191,1709699437621,-500.0,0.00023287,2]
[317157192,1709699437630,-500.0,0.00023287,2]
[317157193,1709699437639,-500.0,0.00023287,2]
[317157194,1709699437648,-500.0,0.00023287,2]
[317157196,1709699437658,-512.67629246,0.00023287,2]
[317157198,1709699437667,-500.0,0.00023287,2]
[317157200,1709699437677,-500.0,0.00023287,2]
[317157202,1709699437685,-502.35400106,0.00023287,2]
[317157204,1709699437695,-500.0,0.00023287,2]
[317157205,1709699437704,-500.0,0.00023287,2]
[317157207,1709699437713,-500.0,0.00023287,2]
[317157208,1709699437722,-500.0,0.00023287,2]
[317157209,1709699437731,-500.0,0.00023287,2]
[317157210,1709699437740,-500.0,0.00023287,2]
[317157211,1709699437749,-500.0,0.00023287,2]
[317157212,1709699437759,-500.0,0.00023287,2]
[317157213,1709699437768,-500.0,0.00023287,2]
[317157214,1709699437777,-500.0,0.00023287,2]
[317157215,1709699437787,-500.0,0.00023287,2]
[317157216,1709699437796,-500.0,0.00023287,2]
[317157217,1709699437805,-605.2022435,0.00023287,2]
[317157218,1709699437814,-500.0,0.00023287,2]
[317157219,1709699437823,-500.0,0.00023287,2]
[317157220,1709699437833,-526.11531867,0.00023287,2]
[317157221,1709699437843,-500.0,0.00023287,2]
[317157222,1709699437854,-500.0,0.00023287,2]
[317157223,1709699437863,-500.0,0.00023287,2]
[317157224,1709699437876,-496.93287115,0.00023287,2]
[317157225,1709699437886,-500.0,0.00023287,2]
[317157226,1709699437895,-500.0,0.00023287,2]
[317157227,1709699437976,-500.0,0.00023287,2]
[317157228,1709699437986,-500.0,0.00023287,2]
[317157229,1709699437995,-500.0,0.00023287,2]
[317157230,1709699438004,-500.0,0.00023287,2]
[317157231,1709699438013,-500.0,0.00023287,2]
[317157232,1709699438022,-500.0,0.00023287,2]
[317157233,1709699438032,-500.0,0.00023287,2]
[317157234,1709699438041,-500.0,0.00023287,2]
[317157235,1709699438051,-500.0,0.00023287,2]
[317157236,1709699438061,-500.0,0.00023287,2]
[317157237,1709699438070,-500.0,0.00023287,2]
[317157238,1709699438080,-523.9537229,0.00023287,2]
[317157239,1709699438089,-500.0,0.00023287,2]
[317157240,1709699438100,-500.0,0.00023287,2]
[317157241,1709699438109,-619.35752175,0.00023287,2]
[317157242,1709699438118,-500.0,0.00023287,2]
[317157243,1709699438127,-500.0,0.00023287,2]
[317157244,1709699438137,-2783.87,0.00023287,2]
[317157245,1709699438146,-219.2519555,0.00023287,2]
[317157246,1709699438155,-2783.87,0.00023287,2]
[317157247,1709699438165,-2783.87,0.00023287,2]
[317157248,1709699438174,-2783.87,0.00023287,2]
[317157249,1709699438183,-2783.87,0.00023287,2]
[317157250,1709699438192,-2783.87,0.00023287,2]
[317157251,1709699438202,-2783.87,0.00023287,2]
[317157252,1709699438210,-2783.87,0.00023287,2]
[317157253,1709699438219,-2783.87,0.00023287,2]
[317157254,1709699438229,-2783.87,0.00023287,2]
[317157255,1709699438238,-2783.87,0.00023287,2]
[317157256,1709699438246,-2783.87,0.00023287,2]
[317157257,1709699438255,-2783.87,0.00023287,2]
[317157258,1709699438265,-2783.87,0.00023287,2]
[317157259,1709699438274,-2783.87,0.00023287,2]
[317157260,1709699438283,-2783.87,0.00023287,2]
[317157261,1709699438291,-2783.87,0.00023287,2]
[317157262,1709699438301,-2783.87,0.00023287,2]
[317157263,1709699438310,-2783.87,0.00023287,2]
[317157264,1709699438319,-2783.87,0.00023287,2]
[317157265,1709699438328,-2783.87,0.00023287,2]
[317157266,1709699438338,-1747.34812676,0.00023287,2]
[317157267,1709699438726,-306.39668819,0.00023187,2]
[317157268,1709699438735,-306.39668819,0.00023187,2]
[317157269,1709699438744,-306.39668819,0.00023187,2]
[317157270,1709699438754,-306.39668819,0.00023187,2]
[317157271,1709699438764,-306.39668819,0.00023187,2]
[317157272,1709699438775,-306.39,0.00023187,2]
[317157273,1709699438783,-201.25628549,0.00023287,2]
[317157274,1709699438805,-835.26558775,0.00023287,2]
[317157275,1709699438814,-723.14170877,0.00023287,2]
[317157300,1709699443382,-2060.72829123,0.00023287,2]
[317157302,1709699443392,-2784.10072991,0.00023287,2]
[317157304,1709699443402,-500.0,0.00023287,2]
[317157306,1709699443411,-500.0,0.00023287,2]
[317157308,1709699443421,-500.0,0.00023287,2]
[317157310,1709699443430,-500.0,0.00023287,2]
[317157312,1709699443440,-502.81976014,0.00023287,2]
[317157314,1709699443450,-500.0,0.00023287,2]
[317157316,1709699443459,-500.0,0.00023287,2]
[317157318,1709699443468,-510.83040984,0.00023287,2]
[317157320,1709699443477,-502.33987417,0.00023287,2]
[317157322,1709699443487,-500.0,0.00023287,2]
[317157324,1709699443496,-500.0,0.00023287,2]
[317157326,1709699443506,-500.0,0.00023287,2]
[317157328,1709699443515,-500.0,0.00023287,2]
[317157330,1709699443524,-500.0,0.00023287,2]
[317157332,1709699443534,-500.0,0.00023287,2]
[317157334,1709699443543,-500.0,0.00023287,2]
[317157336,1709699443552,-549.74975857,0.00023287,2]
[317157338,1709699443561,-500.0,0.00023287,2]
[317157340,1709699443570,-500.0,0.00023287,2]
[317157350,1709699443655,-500.0,0.00023287,2]
[317157353,1709699443665,-473.77099098,0.00023287,2]
[317157355,1709699443674,-500.0,0.00023287,2]
[317157357,1709699443683,-500.0,0.00023287,2]
[317157359,1709699443692,-500.0,0.00023287,2]
[317157361,1709699443701,-500.0,0.00023287,2]
[317157363,1709699443710,-500.0,0.00023287,2]
[317157365,1709699443720,-500.0,0.00023287,2]
[317157367,1709699443729,-500.0,0.00023287,2]
[317157369,1709699443739,-500.0,0.00023287,2]
[317157371,1709699443749,-500.0,0.00023287,2]
[317157373,1709699443759,-502.57084846,0.00023287,2]
[317157375,1709699443768,-360.4115576,0.00023287,2]
[317157377,1709699443777,-500.0,0.00023287,2]
[317157379,1709699443786,-500.0,0.00023287,2]
[317157381,1709699443795,-500.0,0.00023287,2]
[317157383,1709699443804,-500.0,0.00023287,2]
[317157385,1709699443814,-500.0,0.00023287,2]
[317157387,1709699443823,-363.06891466,0.00023287,2]
[317157389,1709699443832,-502.43465029,0.00023287,2]
[317157391,1709699443841,-502.02041326,0.00023287,2]
[317157393,1709699443851,-501.50628341,0.00023287,2]
[317157395,1709699443860,-251.05681302,0.00023287,2]
[317157478,1709700359105,-437.96307204,0.00021633,2]
[317157526,1709700632915,-168.79083593,0.00019533,2]
[317157527,1709700632924,-822.29827,0.00021329,2]
[317157528,1709700632934,-573.25857085,0.00021628,2]
[317157529,1709700632943,-155.02015262,0.00021629,2]
[317157531,1709700632952,-315.56511995,0.0002163,2]
[317157533,1709700632962,-12084.69539315,0.00021636,2]
[317157535,1709700632973,-2346.28066337,0.00021636,2]
[317157536,1709700632984,-10469.02394348,0.00021636,2]
[317157537,1709700632994,-1014.92804397,0.00021898,2]
[317157538,1709700633003,-406.30057214,0.000219,2]
[317157539,1709700633012,-162.0,0.00022,2]
[317157540,1709700633021,-155.02015262,0.00022,2]
[317157541,1709700633030,-169.077529,0.00022029,2]
[317157542,1709700633039,-155.0,0.00022287,2]
[317157543,1709700633050,-163.0,0.00023014,2]
[317157544,1709700633059,-170.7751759,0.00023054,2]
[317157545,1709700633068,-1548.2074495,0.00023067,3]
[317157546,1709700633077,-348.34667614,0.00023067,2]
[317157547,1709700633085,-375.33,0.00023097,3]